Cogmind - Beta 16 @@@ ROGUE MODE // 2025.11.02 @ 18:53:41 Player: ChromeKnight Result: Destroyed by Autobeam Turret with Autobeam Performance ------------- Evolutions (0) 0 Regions Visited (2) 400 Robots Destroyed (22) 110 Value Destroyed (421) 421 Prototype IDs (0) 0 Alien Tech Used (0) 0 Bonus (0) 0 TOTAL SCORE: 931 Bonus ------- None Cogmind --------- Core Integrity 0/250 Matter 300/300 Energy 92/100 System Corruption 0% Temperature Cool (6) Movement Treading (160) Location -10/Subcaves Parts ------- > --- POWER (1) -------- (None) > --- PROPULSION (2) --- Spiked Treads Spiked Treads > --- UTILITY (2) ------ (None) > --- WEAPON (2) ------- Small Laser > --- INVENTORY (5) ---- High-capacity Storage Unit Structural Scanner Improved Terrain Scanner Terrain Scan Processor Hacking Suite Peak State ------------ > --- POWER ------------ Light Ion Engine > --- PROPULSION ------- Spiked Treads Spiked Treads > --- UTILITY ---------- Scrap Shield > --- WEAPON ----------- Small Laser Subdweller Machine Gun > --- INVENTORY -------- High-capacity Storage Unit Structural Scanner Improved Terrain Scanner Terrain Scan Processor Hacking Suite [Rating: 13] Favorites ----------- Power Light Ion Engine Engine Light Ion Engine Propulsion Light Treads Treads Light Treads Utility Scrap Shield Device Heat Sink Storage High-capacity Storage Unit Protection Scrap Shield Weapon Small Laser Energy Gun Small Laser Ballistic Gun Subdweller Machine Gun Build | -11 -10 -10 ------- Run | Yrd Mat Sub Slots Evolved . | . . . Power . | . . . Propulsion . | . . . Utility . | . . . Weapon . | . . . Parts Attached 17 | 6 3 8 Power 3 | 1 . 2 Engine 3 | 1 . 2 Core . | . . . Reactor . | . . . Propulsion 5 | 2 . 3 Treads 5 | 2 . 3 Leg . | . . . Wheel . | . . . Hover . | . . . Flight . | . . . Utility 4 | 1 2 1 Device 1 | . 1 . Storage 2 | 1 1 . Processor . | . . . Hackware . | . . . Protection 1 | . . 1 Artifact . | . . . Weapon 5 | 2 1 2 Energy Gun 3 | 1 1 1 Energy Cannon . | . . . Ballistic Gun 2 | 1 . 1 Ballistic Cannon . | . . . Launcher . | . . . Special Weapon . | . . . Impact Weapon . | . . . Slashing Weapon . | . . . Piercing Weapon . | . . . Special Melee Weapon . | . . . Unidentified Prototypes . | . . . Parts Lost 2 | . . 2 Power 1 | . . 1 Propulsion . | . . . Utility 1 | . . 1 Weapon . | . . . Highest Loss Streak 2 | . . 2 To Critical Strikes . | . . . Average Backups 5 | . 4 6 Power . | . . . Propulsion . | . . . Utility 4 | . 2 5 Weapon . | . 1 . Tool/Special . | . . . Unused Backups 8 | . 1 7 Power . | . . . Propulsion . | . . . Utility 6 | . . 6 Weapon 2 | . 1 1 Tool/Special . | . . . Average Slot Usage (%) 88 | . 87 88 Engine 13 | . 14 13 Treads 28 | . 28 28 Device 3 | . 2 4 Storage 7 | . 14 4 Protection 6 | . . 9 Energy Gun 18 | . 16 18 Ballistic Gun 9 | . 11 8 Peak Build Rating 13 | 6 8 13 Average Rating 8 | 4 6 10 On Entrance 4 | . 6 8 Avg Prop Armor Cover (%) . | . . . Naked Turns . | . . . Heaviest Build 51 | 11 51 47 Greatest Support 40 | 40 40 40 Greatest Overweight (x) 1 | . 1 1 Average Overweight (x) . | . . . Largest Inventory Capacity 20 | 8 20 20 Average Capacity 11 | 6 15 9 Most Carried 11 | 1 11 11 Average Carried 5 | . 4 6 Final Capacity 20 | 8 20 5 Final Carried 11 | 1 11 5 Class Distribution -------------------- 60% | Mutant 39% | Scavenger-Mutant Dominant Class ---------------- Mutant | -10/Materials Scavenger-Mutant | -10/Subcaves Resources | -11 -10 -10 ----------- Run | Yrd Mat Sub Matter Collected 615 | 229 292 94 Remotely . | . . . Salvage Created 658 | . 469 189 Parts 49 | . 34 15 Haulers Intercepted . | . . . Recyclers Shooed 1 | . 1 . Parts Field Recycled . | . . . Retrieved Matter . | . . . Parts Self-Destructed 24 | . . 24 Prevented . | . . . Parts Restored . | . . . Kills | -11 -10 -10 ------- Run | Yrd Mat Sub Combat Hostiles Destroyed 12 | . 6 6 Guns 11 | . 5 6 Classes Destroyed 9 | . 6 3 Worker 4 | . 4 . Builder 1 | . 1 . Tunneler 1 | . 1 . Recycler 1 | . 1 . Operator 2 | . 2 . Turret 1 | . . 1 Swarmer 4 | . . 4 Grunt 6 | . 6 . Subdweller 2 | . . 2 Best Kill Streak 8 | . 8 4 Combat Bots Only 4 | . 2 4 Max Kills in Single Turn 1 | . 1 1 Gunslinging . | . . . Exploded . | . . . Melee . | . . . Uniques/NPCs Destroyed . | . . . Combat | -11 -10 -10 -------- Run | Yrd Mat Sub Hostile Shots Fired 179 | . 27 152 Missed 74 | . 6 68 Hits 105 | . 21 84 Projectile 105 | . 21 84 Critical Strikes 1 | . 1 . Damage Taken 1054 | . 258 796 Core 256 | . 80 176 Absorbed by Shields . | . . . Core Remaining (%) 100 | 100 . . Volleys Fired 78 | . 39 39 Largest 2 | . 2 2 Hottest 90 | . 90 90 Shots Fired 133 | . 78 55 Gun 133 | . 78 55 Cannon . | . . . Launcher . | . . . Special . | . . . Kinetic 43 | . 36 7 Thermal 90 | . 42 48 Explosive . | . . . Electromagnetic . | . . . Robot Hit Streak 23 | . 12 23 Robot Miss Streak 5 | . 3 5 Penetration Max . | . . . Secondary Targets 1 | . 1 . Max Gunslinging Chain 1 | . 1 . Shots Hit Robots 95 | . 56 39 Core Hits 44 | . 29 15 Critical Kills . | . . . Critical Parts Destroyed 1 | . 1 . Critical Strikes 5 | . 5 . Burn 4 | . 4 . Destroy 1 | . 1 . Melee Attacks . | . . . Impact . | . . . Slashing . | . . . Piercing . | . . . Sneak Attacks . | . . . Combat Hostiles . | . . . Follow-up Attacks . | . . . Damage Inflicted 1102 | . 615 487 Guns 1101 | . 614 487 Cannons . | . . . Explosions . | . . . Melee . | . . . Ramming 1 | . 1 . Kinetic 246 | . 179 67 Thermal 855 | . 435 420 Explosive . | . . . Electromagnetic . | . . . Impact . | . . . Slashing . | . . . Piercing . | . . . Highest Corruption . | . . . Average Corruption . | . . . Corruption Purged . | . . . Corruption Blocked . | . . . Overload Shots . | . . . Overflow Damage . | . . . Projectiles . | . . . Explosions . | . . . Melee . | . . . Knockbacks . | . . . Impact . | . . . Kinetic . | . . . Secondary . | . . . Self-Inflicted Damage . | . . . Shots . | . . . Rammed 1 | . 1 . Targets Rammed 1 | . 1 . Kicked . | . . . Crushed . | . . . Highest Temperature 253 | . 253 5 Average Temperature 81 | . 82 5 Received Heat Transfer 555 | . 159 396 Effects 1 | . 1 . Energy Bleed 1 | . 1 . Siege Activations . | . . . Martial Activations . | . . . Shielding Activations . | . . . Robots Disrupted . | . . . Combat Hostiles . | . . . Robots Corrupted . | . . . Combat Hostiles . | . . . Parts Fried . | . . . Impact Corruptions . | . . . Robots Melted 1 | . 1 . Combat Hostiles 1 | . 1 . Parts Melted 3 | . 2 1 Heat Transferred 2562 | . 1530 1032 Parts Sabotaged . | . . . Parts Stolen . | . . . Parts Stripped . | . . . Power Chain Reactions . | . . . Alert | -11 -10 -10 ------- Run | Yrd Mat Sub Maximum Alert Level . | . . . Low Security (%) 100 | 100 100 . Level 1 . | . . . Level 2 . | . . . Level 3 . | . . . Level 4 . | . . . Level 5 . | . . . High Security . | . . . Max Security . | . . . Peak Influence 74 | . 74 . Initial . | . . . Average 28 | . 33 . Influence Increases 449 | . 199 250 Destroy 0b10 Robot/C 220 | . 120 100 Destroy 0b10 Robot/NC 45 | . 45 . Destroy Leader 30 | . 30 . Successful Hack 4 | . 4 . Lose Combat Pursuer 150 | . . 150 Influence Decreases 249 | . 168 81 Entered New Map 15 | . . 15 Time Decay 214 | . 168 46 Lost Part 20 | . . 20 Squads Dispatched 3 | . 3 . Investigation 1 | . 1 . Extermination . | . . . Reinforcement 2 | . 2 . Assault . | . . . Garrison . | . . . Intercept . | . . . Searches Triggered . | . . . Construction Impeded . | . . . Haulers Reinforced . | . . . Active Scanning Responses . | . . . Cargo Convoy Interrupts . | . . . Stealth | -11 -10 -10 --------- Run | Yrd Mat Sub Distress Signals . | . . . Communications Jammed . | . . . Distress Signals . | . . . Times Spotted 26 | . 10 16 Peak Tracking Total 6 | . 2 6 Tactical Retreats 4 | . . 4 Traps | -11 -10 -10 ------- Run | Yrd Mat Sub Traps Triggered 1 | . 1 . Indirectly . | . . . Trap Hack Attempts . | . . . Triggered . | . . . Disarmed . | . . . Reprogrammed . | . . . Reused . | . . . Traps Extracted . | . . . Installed . | . . . Triggered . | . . . Machines | -11 -10 -10 ---------- Run | Yrd Mat Sub Machines Disabled . | . . . Max in Single Turn . | . . . Machines Repaired . | . . . Machines Dismantled . | . . . Machines Sabotaged . | . . . Overloaded Fab Kills . | . . . Hacking | -11 -10 -10 --------- Run | Yrd Mat Sub Machines Accessed 4 | . 3 1 Terminals 3 | . 3 . Fabricators . | . . . Repair Stations . | . . . Recycling Units . | . . . Scanalyzers . | . . . Garrison Access . | . . . Total Hacks 11 | . 8 3 Successful 6 | . 3 3 Failed 5 | . 5 . Catastrophic . | . . . Database Lockouts . | . . . Manual 1 | . 1 . Terminals 8 | . 8 . Fabricators . | . . . Repair Stations . | . . . Recycling Units . | . . . Scanalyzers . | . . . Garrison Access . | . . . Terminal Hacks 6 | . 3 3 Record 3 | . . 3 Robot Analysis 1 | . 1 . Recall Reinforcements 1 | . 1 . Zone Layout 1 | . 1 . Fabricator Hacks . | . . . Repair Station Hacks . | . . . Recycling Unit Hacks . | . . . Scanalyzer . | . . . Garrison Access Hacks . | . . . Unauthorized Hacks . | . . . Terminals . | . . . Fabricators . | . . . Repair Stations . | . . . Recycling Units . | . . . Scanalyzers . | . . . Garrison Access . | . . . Data Cores Recovered . | . . . Used . | . . . Hacking Detections 3 | . 3 . Full Trace Events 1 | . 1 . Feedback Events . | . . . Feedback Blocked . | . . . Robot Schematics Acquired . | . . . Robots Built . | . . . Authchips . | . . . Time . | . . . Total Robot Build Rating . | . . . Part Schematics Acquired . | . . . Parts Built . | . . . Authchips . | . . . Time . | . . . Total Part Build Rating . | . . . Part Studies Acquired . | . . . Parts Repaired . | . . . Time . | . . . Parts Recycled . | . . . Recycled Matter . | . . . Retrieved Matter . | . . . Retrieved Components . | . . . Parts Scanalyzed . | . . . Part Schematics Acquired . | . . . Parts Damaged . | . . . Bothacking | -11 -10 -10 ------------ Run | Yrd Mat Sub Used RIF Installer . | . . . Robots Hacked . | . . . Non-combat . | . . . Combat . | . . . Robot Hacks Applied . | . . . Relay Couplers Released . | . . . Fabnet Peak Effective % . | . . . Robots Rewired . | . . . Allies Hacked . | . . . Hacks Repelled . | . . . Allies | -11 -10 -10 -------- Run | Yrd Mat Sub Total Allies . | . . . Largest Group . | . . . Highest-Rated Group . | . . . Highest-Rated Ally . | . . . Total Orders . | . . . Ally Attacks . | . . . Total Damage . | . . . Kills . | . . . Allies Corrupted . | . . . Allies Melted . | . . . Intel | -11 -10 -10 ------- Run | Yrd Mat Sub Active Infowar (turns) . | . . . Robot Analysis Total 1 | . 1 . Derelict Logs Recovered . | . . . Drone Launches . | . . . Drone Recoveries . | . . . Exploration | -11 -10 -10 ------------- Run | Yrd Mat Sub Turns Passed 1435 | 72 401 962 Spaces Moved 646 | 43 132 471 Core 5 | 5 . . Treads 641 | 38 132 471 Legs . | . . . Wheels . | . . . Hover . | . . . Flight . | . . . Fastest Speed 50 | 50 160 160 Average Speed 180 | 147 199 177 Slowest Speed 240 | 160 240 240 Overloaded Moves . | . . . Propulsion Burnouts . | . . . Robots Hopped . | . . . Potential Cave-ins . | . . . Cave-ins Triggered . | . . . Exploration Rate (%) 20 | 4 29 28 Regions Visited 2 Branch Regions 1 Pre-discovered Areas . | . . . Known Exits Taken . | . . . Unknown Exits Taken 2 | 1 1 . Scrap Searched . | . . . Spaces Dug . | . . . Terrain Destroyed . | . . . Melee . | . . . Projectile . | . . . AOE . | . . . Terrain Rammed . | . . . Walls Destroyed . | . . . Machines Disabled . | . . . Actions | -11 -10 -10 --------- Run | Yrd Mat Sub Total 793 | 49 199 545 Wait 22 | . 12 10 Move 644 | 42 131 471 Hop . | . . . Pick Up 15 | 1 10 4 Fast Attach 11 | 6 3 2 Attach . | . . . Detach 1 | . 1 . Swap 6 | . . 6 Drop 14 | . 2 12 Fire 78 | . 39 39 Melee . | . . . Ram . | . . . Kick . | . . . Crush 1 | . 1 . Escape Stasis . | . . . Rewire . | . . . Trap . | . . . Miscellaneous 1 | . . 1 Route ------- -11/Scrapyard -10/Materials (discovered 2 exits: [*Min] / *Sub) -10/Subcaves (discovered 2 exits: [*Mat] / *Rec) History --------- Turn | Location | Event 9 | -11/Scrapyard | Discovered new exit (range 15) 73 | -11/Scrapyard | Entered Materials 318 | -10/Materials | Build established: Mutant 333 | -10/Materials | Discovered new exit (range 9) 453 | -10/Materials | Discovered new exit (range 9) 474 | -10/Materials | Entered Subcaves 751 | -10/Subcaves | Core integrity fell below 50% 987 | -10/Subcaves | Visited Clippyterm 991 | -10/Subcaves | Identified exit to Recycling 1116 | -10/Subcaves | Build established: Scavenger-Mutant 1158 | -10/Subcaves | Shifting Twisted Machinery released Spk. Treads 1158 | -10/Subcaves | Shifting Twisted Machinery released Spk. Treads 1189 | -10/Subcaves | Discovered new exit (range 7) 1340 | -10/Subcaves | Core integrity fell below 20% 1436 | -10/Subcaves | Destroyed by Autobeam Turret with Autobeam Last Messages --------------- 01357_ Flight Unit fries itself beyond repair. 01359_ S-10 Pest destroyed. 01362_ Acquired 6 matter. 01363_ Lgt. Ion Engine fries itself beyond repair. 01363_ Acquired 9 matter. 01364_ Lgt. Assault Rifle fries itself beyond repair. 01367_ Lgt. Ion Engine fries itself beyond repair. 01372_ Sub. Machine Gun shoots sparks and powers down. 01375_ Dropped Broken Sub. Machine Gun. 01376_ Lgt. Assault Rifle fries itself beyond repair. 01379_ Acquired 2 matter. 01399_ Scrap Shield destroyed. 01413_ Autobeam Turret destroyed. 01422_ Lgt. Ion Engine destroyed. 01431_ Autobeam fries itself beyond repair. Map ----- +----------------------------------------------------+ | ?????????????????????????????????????????????????? | | ?????????????????????????????????????????????????? | | ?????????????????????????????????????????????????? | | ?????????????????????????????????????????????????? | | ?????????????????????????????????????????????????? | | ?????????????????????????????????????????????????? | | ?????????????????????????????????????????????????? | | ?????????????????????????????????????????????????? | | ?????????????????????????????????????????????????? | | ?????????????????????????????????????????????????? | | ?????????????????????????????????????????????????? | | ?????????????????????????????????????????????????? | | ?????????????????????????????????????????????????? | | ?????????????????????????????????????????????????? | | ?????????????????????????????????????????????????? | | ?????????????????????????????????????????????????? | | ??????????????????????????##?????????????????????? | | ?????????????????????#####>#####?????????????????? | | ??????????????????????"""" """"#?????????????????? | | ??????????????????????" " " "#?????????????????? | | ??????????????????????? t % "#?????????????????? | | ??????????????????????? #?????????????????? | | ???????????????????????? #? ??????????????? | | ???????????????????????? ?? ?????????????? | | ????????????????????????# #??# ?????????????? | | ???????????????????????##@ #?# #??????????????? | | ???????????????????????# ## #???????????????? | | ?????????????????#????## # #????????????????? | | ?????????????????# ??## #?????????????????? | | ??????????????????# ## #??###????????????? | | ??????????????????# ##?? ##???????????? | | ??????????????????# ## ##### #???????????? | | ????### #????????#??# #### #???????????? | | ????# ???????????# #?# #???????????? | | ????#" ???????????## ### #???????????? | | ???? ?#??????????# %[ #???????????? | | ????#" ? ?????????# ## #????????????? | | ????## ? ????????# ### % ##????????????? | | ????? # ?????######??#### ##?????????????? | | ??????? ##???## #???????# #??????????????? | | ????????# #??## #??????## ##??????????????? | | ???????## #### ######## #???????????????? | | ???????# ## #???????????????? | | ????????# ##???????????????? | | ######?### ##????????????????? | | ### #?????????????????? | | ###### #?????????????????? | | ###????#### ##?????????????????? | | # # #?????????## ##??????????????????? | | ## ##### ####??????????####???????????????????? | +----------------------------------------------------+ Best States ------------- Heat Dissipation 35 Energy Generation 10 Energy Capacity 125 Matter Stores 300 Matter Capacity 300 Sight Range 16 Terrain Scan Density 10 Armor Coverage 800 Evasion (%) 40 Recoil Reduction 2 Item Schematics ----------------- None Robot Schematics ------------------ None Fabricated ------------ Nothing Repaired ---------- Nothing Studied --------- None Alien Tech Used ----------------- None Achievements -------------- None Challenges ------------ None Game ------ Seed BattleZhirovMask Manual? 0 Play Time 00:08:52 Cumulative 498.8 hours Start 2025.11.02 @ 18:48:10 End 2025.11.02 @ 18:53:41 Sessions 1 Manual Loads 0 Difficulty Rogue Special Mode None Game No. 832 Rogue 677 Adventurer 148 Explorer 7 Win Type - Total 24 Types 19/1/3/1/0/0/0/0/0/0 Lore% 72 Gallery% 77 Achievement% 59 Wizard Run 0 Options --------- Layout 1 ASCII 0 Keyboard 0 Movement Numpad Keybinds 0 Fullscreen 2 Font 24/Smallcaps Map View 50x40 Zoom Use 0% Tactical HUD 1 Map Filters NONE Filters NONE Steam 1 RUN: 0d4c7669-da26-40ed-8c1c-b005db395d50